fUST/lending_fUST_20250604
["ID","MTS","AMOUNT","RATE_DAILY","PERIOD"]
[364101301,1748999439139,-306.14901748,0.00016438,2]
[364101302,1748999439148,-500.0,0.00016438,2]
[364101303,1748999439157,-509.25515503,0.00016438,2]
[364101304,1748999439166,-440.0,0.00016438,2]
[364101305,1748999439176,-440.0,0.00016438,2]
[364101306,1748999439185,-440.0,0.00016438,2]
[364101307,1748999439195,-440.0,0.00016438,2]
[364101308,1748999439205,-440.0,0.00016438,2]
[364101309,1748999439215,-355.09781055,0.00016438,2]
[364101310,1748999439227,-440.0,0.00016438,2]
[364101311,1748999439236,-440.0,0.00016438,2]
[364101312,1748999439246,-440.0,0.00016438,2]
[364101313,1748999439256,-440.0,0.00016438,2]
[364101314,1748999439266,-440.0,0.00016438,2]
[364101315,1748999439276,-430.0,0.00016438,2]
[364101316,1748999439285,-453.68292201,0.00016438,2]
[364101317,1748999439295,-430.0,0.00016438,2]
[364101318,1748999439304,-402.86698581,0.00016438,2]
[364101319,1748999439314,-440.0,0.00016438,2]
[364101320,1748999439323,-422.05714651,0.00016438,2]
[364101321,1748999439332,-440.0,0.00016438,2]
[364101322,1748999439342,-431.18877843,0.00016438,2]
[364101323,1748999439351,-440.0,0.00016438,2]
[364101324,1748999439363,-440.0,0.00016438,2]
[364101325,1748999439382,-440.0,0.00016438,2]
[364101326,1748999439392,-430.0,0.00016438,2]
[364101327,1748999439402,-430.0,0.00016438,2]
[364101328,1748999439411,-431.3834317,0.00016438,2]
[364101329,1748999439420,-440.0,0.00016438,2]
[364101330,1748999439430,-430.0,0.00016711,2]
[364101331,1748999439439,-440.0,0.00016711,2]
[364101332,1748999439448,-556.25497633,0.00016711,2]
[364101333,1748999439457,-440.0,0.00016711,2]
[364101334,1748999439467,-934.66,0.00016712,2]
[364101335,1748999439476,-440.0,0.00016712,2]
[364101336,1748999439485,-440.0,0.00016712,2]
[364101337,1748999439495,-440.0,0.00016712,2]
[364101338,1748999439504,-440.0,0.00016712,2]
[364101339,1748999439513,-440.0,0.00016712,2]
[364101340,1748999439523,-440.0,0.00016712,2]
[364101341,1748999439532,-24900.0,0.00016758,2]
[364101342,1748999439541,-190.78,0.00016985,2]
[364101343,1748999439551,-440.0,0.00016985,2]
[364101344,1748999439560,-934.66,0.00016986,2]
[364101345,1748999439569,-409.65,0.00016986,2]
[364101346,1748999439579,-440.0,0.00016986,2]
[364101347,1748999439589,-440.0,0.00016986,2]
[364101348,1748999439599,-440.0,0.00016986,2]
[364101349,1748999439608,-440.0,0.00016986,2]
[364101350,1748999439619,-440.0,0.00016986,2]
[364101351,1748999439629,-203.010446,0.00017144,2]
[364101352,1748999439638,-440.0,0.00017259,2]
[364101353,1748999439648,-934.66,0.0001726,2]
[364101354,1748999439657,-440.0,0.0001726,2]
[364101355,1748999439666,-440.0,0.0001726,2]
[364101356,1748999439676,-440.0,0.0001726,2]
[364101357,1748999439686,-423.41908283,0.0001726,2]
[364101358,1748999439695,-484.08,0.0001726,2]
[364101359,1748999439705,-440.0,0.00017533,2]
[364101360,1748999439714,-934.66,0.00017534,2]
[364101361,1748999439727,-440.0,0.00017534,2]
[364101362,1748999439737,-440.0,0.00017534,2]
[364101363,1748999439747,-440.0,0.00017534,2]
[364101364,1748999439756,-440.0,0.00017807,2]
[364101365,1748999439765,-934.66,0.00017808,2]
[364101366,1748999439775,-440.0,0.00017808,2]
[364101367,1748999439785,-440.0,0.00017808,2]
[364101368,1748999439794,-440.0,0.00017808,2]
[364101369,1748999439804,-644.59571761,0.000179,2]
[364101370,1748999439814,-440.0,0.00018081,2]
[364101371,1748999439823,-934.66,0.00018082,2]
[364101372,1748999439833,-440.0,0.00018082,2]
[364101373,1748999439843,-440.0,0.00018082,2]
[364101374,1748999439852,-440.0,0.00018082,2]
[364101375,1748999439862,-644.59571736,0.00018141,2]
[364101376,1748999439872,-440.0,0.00018355,2]
[364101377,1748999439883,-934.66,0.00018356,2]
[364101378,1748999439893,-440.0,0.00018356,2]
[364101379,1748999439904,-440.0,0.00018356,2]
[364101380,1748999439914,-440.0,0.00018356,2]
[364101381,1748999439924,-644.59571736,0.00018383,2]
[364101382,1748999439934,-644.59571736,0.00018624,2]
[364101383,1748999439944,-440.0,0.00018629,2]
[364101384,1748999439954,-934.66,0.0001863,2]
[364101385,1748999439963,-440.0,0.0001863,2]
[364101386,1748999439973,-440.0,0.0001863,2]
[364101387,1748999439983,-440.0,0.0001863,2]
[364101388,1748999439992,-229.42821335,0.00018786,2]
[364101389,1748999440002,-423.63107087,0.00018786,2]
[364101390,1748999440012,-12670.76136593,0.00018786,2]
[364101391,1748999440021,-160.0,0.00018786,2]
[364101392,1748999440031,-160.0,0.00018786,2]
[364101393,1748999440041,-212.86879254,0.00018786,2]
[364101394,1748999440051,-644.59571736,0.00018866,2]
[364101395,1748999440061,-440.0,0.00018903,2]
[364101396,1748999440071,-934.66,0.00018904,2]
[364101397,1748999440080,-440.0,0.00018904,2]
[364101398,1748999440090,-440.0,0.00018904,2]
[364101399,1748999440100,-440.0,0.00018904,2]
[364101400,1748999440110,-644.59571736,0.00019107,2]
[364101401,1748999440120,-440.0,0.00019177,2]
[364101402,1748999440130,-934.66,0.00019178,2]
[364101403,1748999440140,-440.0,0.00019178,2]
[364101404,1748999440150,-394.48,0.00019178,2]
[364101405,1748999440160,-440.0,0.00019178,2]
[364101406,1748999440170,-644.59571736,0.00019348,2]
[364101407,1748999440180,-934.66,0.00019452,2]
[364101408,1748999440190,-440.0,0.00019452,2]
[364101409,1748999440200,-186.7713,0.00019452,2]
[364101410,1748999440209,-644.59571736,0.0001959,2]
[364101411,1748999440223,-934.66,0.00019726,2]
[364101412,1748999440233,-440.0,0.00019726,2]
[364101413,1748999440242,-179.186,0.00019778,2]
[364101414,1748999440252,-644.59571736,0.00019831,2]
[364101416,1748999440263,-934.66,0.0002,2]
[364101418,1748999440273,-440.0,0.0002,2]
[364101419,1748999440282,-644.59571736,0.00020072,2]
[364101420,1748999440292,-279.977733,0.00020187,2]
[364101421,1748999440303,-934.66,0.00020273,2]
[364101422,1748999440313,-440.0,0.00020273,2]
[364101423,1748999440322,-644.59571736,0.00020314,3]
[364101424,1748999440332,-800.0,0.00020331,2]
[364101425,1748999440342,-934.66,0.00020547,2]
[364101426,1748999440351,-440.0,0.00020547,2]
[364101427,1748999440361,-644.59571736,0.00020555,3]
[364101428,1748999440371,-1053.68,0.000206,2]
[364101430,1748999440381,-644.59571736,0.00020797,4]
[364101433,1748999440392,-934.66,0.00020821,2]
[364101449,1748999440538,-440.0,0.00020821,2]
[364101451,1748999440548,-3000.0,0.00021,2]
[364101453,1748999440558,-3000.0,0.0002101,2]
[364101455,1748999440567,-3000.0,0.0002102,2]
[364101457,1748999440577,-3000.0,0.0002103,2]
[364101459,1748999440586,-644.59571736,0.00021038,4]
[364101461,1748999440596,-3000.0,0.0002104,2]
[364101463,1748999440606,-3000.0,0.0002105,2]
[364101465,1748999440615,-3000.0,0.0002106,2]
[364101467,1748999440627,-3000.0,0.0002107,2]
[364101469,1748999440637,-3000.0,0.0002108,2]
[364101471,1748999440647,-3000.0,0.0002109,2]
[364101473,1748999440657,-934.66,0.00021095,2]
[364101475,1748999440667,-440.0,0.00021095,2]
[364101477,1748999440677,-3000.0,0.000211,2]
[364101479,1748999440687,-3000.0,0.0002111,2]
[364101481,1748999440696,-3000.0,0.0002112,2]
[364101483,1748999440706,-3000.0,0.0002113,2]
[364101485,1748999440716,-3000.0,0.0002114,2]
[364101487,1748999440726,-3468.412918,0.0002115,2]
[364101490,1748999440736,-644.59571736,0.00021279,5]
[364101492,1748999440745,-934.66,0.00021369,2]
[364101494,1748999440755,-452.51,0.00021369,2]
[364101496,1748999440764,-800.0,0.00021427,2]
[364101498,1748999440773,-644.59571736,0.00021521,5]
[364101500,1748999440783,-934.66,0.00021643,2]
[364101502,1748999440792,-644.59571736,0.00021762,5]
[364101504,1748999440801,-1053.68,0.000218,2]
[364101506,1748999440811,-934.66,0.00021917,2]
[364101508,1748999440821,-171.0,0.00022,2]
[364101510,1748999440830,-170.0,0.00022,2]
[364101512,1748999440840,-644.59571736,0.00022003,6]
[364101514,1748999440850,-934.66,0.00022191,2]
[364101516,1748999440859,-644.59571736,0.00022245,6]
[364101518,1748999440868,-934.66,0.00022465,2]
[364101520,1748999440878,-644.59571736,0.00022486,7]
[364101522,1748999440887,-388.93647564,0.0002255,2]
[364101524,1748999440897,-644.59571736,0.00022728,7]
[364101526,1748999440906,-934.8592,0.00022739,2]
[364101528,1748999440916,-207.4,0.0002287,2]
[364101530,1748999440927,-644.59571736,0.00022969,8]
[364101532,1748999440936,-168.0,0.00023,10]
[364101534,1748999440947,-168.0,0.00023,10]
[364101536,1748999440956,-168.0,0.00023,10]
[364101538,1748999440965,-168.0,0.00023,7]
[364101540,1748999440975,-168.0,0.00023,7]
[364101542,1748999440985,-168.0,0.00023,7]
[364101544,1748999440994,-168.0,0.00023,7]
[364101546,1748999441004,-168.0,0.00023,5]
[364101549,1748999441013,-154.10792983,0.00023,5]
[364101550,1748999441023,-1966.21,0.00023,7]
[364101553,1748999441033,-171.0,0.00023014,7]
[364101555,1748999441043,-330.0247345,0.00023178,2]
[364101557,1748999441052,-364.5107659,0.00023178,2]
[364101559,1748999441061,-364.5107659,0.00023178,2]
[364101561,1748999441071,-364.5107659,0.00023178,2]
[364101563,1748999441080,-364.5107659,0.00023178,2]
[364101565,1748999441090,-364.5107659,0.00023178,2]
[364101567,1748999441099,-729.0215318,0.00023178,2]
[364101569,1748999441108,-1341.26624534,0.000232,2]
[364101571,1748999441117,-1053.68,0.000232,7]
[364101573,1748999441126,-644.59571736,0.0002321,8]
[364101575,1748999441136,-1976.89917834,0.00023215,2]
[364101577,1748999441145,-2000.0,0.00023287,2]
[364101579,1748999441154,-2000.0,0.00023287,2]
[364101581,1748999441163,-2000.0,0.00023287,2]
[364101583,1748999441173,-2000.0,0.00023287,2]
[364101585,1748999441182,-2000.0,0.00023287,2]
[364101587,1748999441191,-503.34123024,0.00023287,2]
[364101589,1748999441200,-169426.64,0.000233,7]
[364101591,1748999441210,-12670.76136593,0.000233,7]
[364101593,1748999441222,-154.2001919,0.00023315,2]
[364101595,1748999441232,-153.0,0.00023315,2]
[364101597,1748999441241,-158.5442955,0.00023315,2]
[364101599,1748999441251,-296.8702805,0.00023315,2]
[364101601,1748999441260,-153.234842,0.00023315,2]
[364101603,1748999441270,-572.6068135,0.00023315,2]
[364101605,1748999441279,-176.5641048,0.00023315,2]
[364101607,1748999441289,-572.6068135,0.00023315,2]
[364101609,1748999441298,-158.5442955,0.00023315,2]
[364101611,1748999441309,-153.0,0.00023315,2]
[364101613,1748999441319,-176.5641048,0.00023315,2]
[364101615,1748999441328,-158.5442955,0.00023315,2]
[364101617,1748999441338,-153.0,0.00023315,2]
[364101619,1748999441347,-572.6068135,0.00023315,2]
[364101621,1748999441357,-158.5442955,0.00023315,2]
[364101623,1748999441367,-176.5641048,0.00023315,2]
[364101625,1748999441376,-572.6068135,0.00023315,2]
[364101627,1748999441386,-158.5442955,0.00023315,2]
[364101629,1748999441395,-153.0,0.00023315,2]
[364101631,1748999441405,-176.5641048,0.00023315,2]
[364101633,1748999441414,-572.6068135,0.00023315,2]
[364101635,1748999441424,-153.0,0.00023315,2]
[364101637,1748999441433,-176.5641048,0.00023315,2]
[364101639,1748999441443,-502.9271912,0.00023315,2]
[364101641,1748999441452,-158.5442955,0.00023315,2]
[364101643,1748999441461,-153.0,0.00023315,2]
[364101645,1748999441471,-158.5442955,0.00023315,2]
[364101647,1748999441480,-153.0,0.00023315,2]
[364101649,1748999441490,-353.1282096,0.00023315,2]
[364101651,1748999441501,-572.6068135,0.00023315,2]
[364101653,1748999441510,-1976.89917834,0.00023419,2]
[364101655,1748999441520,-644.59571736,0.00023452,9]
[364101657,1748999441530,-168.0,0.000236,10]
[364101659,1748999441539,-168.0,0.000236,10]
[364101661,1748999441548,-151.0,0.000236,8]
[364101663,1748999441558,-1341.26624533,0.00023616,2]
[364101665,1748999441568,-800.0,0.00023619,2]
[364101667,1748999441578,-1976.89917834,0.00023623,2]
[364101669,1748999441587,-1683.173453,0.00023678,3]
[364101671,1748999441597,-644.59571736,0.00023693,9]
[364101673,1748999441607,-1336.54,0.000238,2]
[364101675,1748999441617,-1976.89917834,0.00023827,2]
[364101677,1748999441627,-75847.2947801,0.0002389,2]
[364101679,1748999441638,-168.0,0.000239,15]
[364101681,1748999441647,-168.0,0.000239,14]
[364101684,1748999441658,-168.0,0.000239,14]
[364101686,1748999441668,-151.0,0.000239,5]
[364101688,1748999441679,-1966.21,0.000239,7]
[364101690,1748999441689,-12973.81796571,0.00023902,2]
[364101692,1748999441699,-800.0,0.00023931,2]
[364101694,1748999441709,-644.59571736,0.00023934,10]
[364101696,1748999441719,-5000.0,0.00023942,30]
[364101698,1748999441728,-5000.0,0.00023942,30]
[364101700,1748999441738,-5000.0,0.00023942,30]
[364101702,1748999441748,-5000.0,0.00023942,30]
[364101704,1748999441757,-5000.0,0.00023942,30]
[364101705,1748999441767,-5000.0,0.00023942,30]
[364101706,1748999441776,-5000.0,0.00023942,30]
[364101707,1748999441786,-5000.0,0.00023942,30]
[364101708,1748999441795,-5000.0,0.00023942,30]
[364101709,1748999441806,-800.0,0.00023961,2]
[364101710,1748999441815,-168.0,0.00024,20]
[364101711,1748999441825,-168.0,0.00024,20]
[364101712,1748999441835,-168.0,0.00024,20]
[364101713,1748999441844,-168.0,0.00024,15]
[364101714,1748999441854,-168.0,0.00024,15]
[364101715,1748999441863,-168.0,0.00024,15]
[364101716,1748999441873,-200.73,0.00024,31]
[364101717,1748999441882,-200.73,0.00024,31]
[364101718,1748999441892,-200.73,0.00024,31]
[364101719,1748999441902,-200.73,0.00024,31]
[364101720,1748999441912,-200.73,0.00024,31]
[364101721,1748999441921,-200.73,0.00024,31]
[364101723,1748999441932,-200.73,0.00024,31]
[364101724,1748999441941,-200.73,0.00024,31]
[364101725,1748999441950,-200.73,0.00024,31]
[364101727,1748999441960,-200.73,0.00024,31]
[364101729,1748999441970,-200.73,0.00024,31]
[364101731,1748999441979,-200.73,0.00024,31]
[364101733,1748999441989,-200.73,0.00024,31]
[364101735,1748999441999,-200.73,0.00024,31]
[364101737,1748999442009,-200.73,0.00024,31]
[364101739,1748999442019,-200.73,0.00024,31]
[364101741,1748999442027,-1502.733786,0.00024,5]
[364101743,1748999442037,-158.13,0.00024,2]
[364101745,1748999442046,-160.0,0.00024,7]
[364101747,1748999442056,-35155.16,0.00024,2]
[364101749,1748999442065,-800.0,0.00024003,2]
[364101751,1748999442075,-800.0,0.00024006,2]
[364101752,1748999442084,-156.305,0.00024014,2]
[364101754,1748999442094,-962.0,0.00024014,2]
[364101756,1748999442103,-2225.0,0.00024014,2]
[364101758,1748999442113,-709.0,0.00024014,2]
[364101760,1748999442122,-1000.0,0.0002402,5]
[364101762,1748999442132,-168.21129388,0.00024031,2]
[364101764,1748999442141,-1976.89917834,0.00024031,2]
[364101766,1748999442150,-1341.26624533,0.00024031,2]
[364101768,1748999442160,-1000.0,0.0002404,5]
[364101770,1748999442170,-1000.0,0.0002406,5]
[364101772,1748999442180,-1000.0,0.0002408,5]
[364101774,1748999442189,-200.0,0.0002409,9]
[364101776,1748999442199,-2000.0,0.000241,2]
[364101778,1748999442208,-2000.0,0.000241,2]
[364101780,1748999442219,-2000.0,0.000241,2]
[364101782,1748999442230,-2000.0,0.000241,2]
[364101784,1748999442239,-1000.0,0.000241,5]
[364101786,1748999442249,-250.0,0.000241,30]
[364101789,1748999442259,-638.0,0.000241,2]
[364101791,1748999442270,-800.0,0.00024103,2]
[364101793,1748999442279,-446.46,0.00024109,2]
[364101794,1748999442289,-446.46,0.00024109,2]
[364101796,1748999442299,-446.46,0.00024109,2]
[364101798,1748999442311,-446.46,0.00024109,2]
[364101800,1748999442321,-446.46,0.00024109,2]
[364101803,1748999442330,-446.46,0.00024109,2]
[364101805,1748999442345,-446.46,0.00024109,2]
[364101807,1748999442354,-446.46,0.00024109,2]
[364101809,1748999442363,-446.46,0.00024109,2]
[364101811,1748999442373,-446.46,0.00024109,2]
[364101813,1748999442382,-446.46,0.00024109,2]
[364101815,1748999442392,-446.46,0.00024109,2]
[364101817,1748999442402,-446.46,0.00024109,2]
[364101819,1748999442412,-446.46,0.00024109,2]
[364101821,1748999442422,-446.46,0.00024109,2]
[364101823,1748999442431,-446.46,0.00024109,2]
[364101825,1748999442441,-446.46,0.00024109,2]
[364101827,1748999442450,-446.46,0.00024109,2]
[364101829,1748999442460,-446.46,0.00024109,2]
[364101831,1748999442469,-446.46,0.00024109,2]
[364101833,1748999442478,-446.46,0.00024109,2]
[364101834,1748999442488,-446.46,0.00024109,2]
[364101836,1748999442498,-446.46,0.00024109,2]
[364101838,1748999442508,-446.60769785,0.00024109,2]
[364101840,1748999442518,-400.0,0.00024115,2]
[364101843,1748999442528,-2200.0,0.00024118,2]
[364101845,1748999442538,-151.0,0.00024119,7]
[364101847,1748999442548,-151.0,0.00024119,7]
[364101849,1748999442557,-151.0,0.00024119,7]
[364101851,1748999442567,-151.0,0.00024119,7]
[364101853,1748999442576,-151.0,0.00024119,7]
[364101855,1748999442586,-151.0,0.00024119,7]
[364101857,1748999442595,-151.0,0.00024119,7]
[364101859,1748999442604,-151.0,0.00024119,7]
[364101861,1748999442614,-151.0,0.00024119,7]
[364101863,1748999442624,-207.40239,0.00024119,7]
[364101865,1748999442633,-151.0,0.00024119,7]
[364101867,1748999442642,-151.0,0.00024119,7]
[364101869,1748999442652,-151.0,0.00024119,7]
[364101871,1748999442662,-151.0,0.00024119,7]
[364101873,1748999442672,-151.0,0.00024119,7]
[364101875,1748999442682,-151.0,0.00024119,7]
[364101877,1748999442691,-151.0,0.00024119,7]
[364101879,1748999442700,-151.0,0.00024119,7]
[364101881,1748999442710,-163.53678,0.00024119,7]
[364101883,1748999442719,-151.0,0.00024119,7]
[364101885,1748999442729,-244.681717,0.00024119,7]
[364101887,1748999442738,-223.539625,0.00024119,7]
[364101888,1748999442747,-151.0,0.00024119,7]
[364101890,1748999442758,-151.0,0.00024119,7]
[364101892,1748999442768,-225.717449,0.00024119,7]
[364101894,1748999442778,-247.5081,0.00024119,7]
[364101896,1748999442788,-247.5081,0.00024119,7]
[364101899,1748999442798,-247.5081,0.00024119,7]
[364101900,1748999442808,-247.5081,0.00024119,7]
[364101902,1748999442818,-247.5081,0.00024119,7]
[364101904,1748999442828,-247.5081,0.00024119,7]
[364101906,1748999442837,-247.5081,0.00024119,7]
[364101908,1748999442848,-247.5081,0.00024119,7]
[364101911,1748999442858,-247.5081,0.00024119,7]
[364101912,1748999442867,-247.5081,0.00024119,7]
[364101915,1748999442877,-247.5081,0.00024119,7]
[364101917,1748999442887,-247.5081,0.00024119,7]
[364101919,1748999442897,-247.5081,0.00024119,7]
[364101921,1748999442907,-247.5081,0.00024119,7]
[364101923,1748999442916,-247.5081,0.00024119,7]
[364101925,1748999442926,-247.5081,0.00024119,7]
[364101927,1748999442935,-247.5081,0.00024119,7]
[364101929,1748999442945,-247.5081,0.00024119,7]
[364101931,1748999442955,-247.5081,0.00024119,7]
[364101933,1748999442965,-247.508093,0.00024119,7]
[364101935,1748999442975,-225.496294,0.00024119,7]
[364101937,1748999442984,-225.496294,0.00024119,7]
[364101939,1748999442994,-225.496294,0.00024119,7]
[364101941,1748999443004,-225.496294,0.00024119,7]
[364101943,1748999443013,-225.496294,0.00024119,7]
[364101946,1748999443023,-225.496294,0.00024119,7]
[364101949,1748999443033,-225.496294,0.00024119,7]
[364101951,1748999443043,-225.496294,0.00024119,7]
[364101953,1748999443053,-225.496294,0.00024119,7]
[364101955,1748999443062,-225.496294,0.00024119,7]
[364101957,1748999443072,-225.496294,0.00024119,7]
[364101959,1748999443082,-225.496294,0.00024119,7]
[364101961,1748999443092,-225.496294,0.00024119,7]
[364101963,1748999443101,-225.496294,0.00024119,7]
[364101965,1748999443111,-225.496294,0.00024119,7]
[364101967,1748999443121,-225.496294,0.00024119,7]
[364101969,1748999443131,-225.496294,0.00024119,7]
[364101971,1748999443141,-225.496294,0.00024119,7]
[364101973,1748999443151,-225.496294,0.00024119,7]
[364101975,1748999443161,-225.496288,0.00024119,7]
[364101977,1748999443171,-423.63107087,0.0002412,7]
[364101979,1748999443180,-229.42821335,0.0002412,7]
[364101981,1748999443189,-160.0,0.0002412,7]
[364101983,1748999443198,-85982.88193369,0.00024131,2]
[364101985,1748999443207,-25392.54230145,0.00024131,3]
[364101987,1748999443219,-342.120441,0.00024131,7]
[364101989,1748999443230,-342.120441,0.00024131,7]
[364101991,1748999443240,-342.120441,0.00024131,7]
[364101993,1748999443249,-342.120441,0.00024131,7]
[364101995,1748999443259,-342.120441,0.00024131,7]
[364101997,1748999443269,-342.120441,0.00024131,7]
[364101999,1748999443278,-342.120441,0.00024131,7]
[364102001,1748999443287,-342.120441,0.00024131,7]
[364102003,1748999443297,-342.120441,0.00024131,7]
[364102005,1748999443307,-342.120441,0.00024131,7]
[364102007,1748999443317,-342.120441,0.00024131,7]
[364102009,1748999443326,-342.120441,0.00024131,7]
[364102011,1748999443337,-342.120441,0.00024131,7]
[364102013,1748999443346,-342.120441,0.00024131,7]
[364102015,1748999443355,-342.120441,0.00024131,7]
[364102017,1748999443364,-342.120441,0.00024131,7]
[364102019,1748999443373,-342.120441,0.00024131,7]
[364102021,1748999443383,-342.120441,0.00024131,7]
[364102023,1748999443394,-342.120441,0.00024131,7]
[364102025,1748999443403,-342.120444,0.00024131,7]
[364102027,1748999443412,-151.0,0.00024131,7]
[364102029,1748999443422,-151.0,0.00024131,7]
[364102031,1748999443432,-151.0,0.00024131,7]
[364102032,1748999443441,-151.0,0.00024131,7]
[364102034,1748999443451,-151.0,0.00024131,7]
[364102036,1748999443461,-151.0,0.00024131,7]
[364102038,1748999443470,-151.0,0.00024131,7]
[364102040,1748999443480,-151.0,0.00024131,7]
[364102042,1748999443490,-151.0,0.00024131,7]
[364102044,1748999443500,-151.0,0.00024131,7]
[364102046,1748999443510,-151.0,0.00024131,7]
[364102049,1748999443519,-151.0,0.00024131,7]
[364102050,1748999443529,-151.0,0.00024131,7]
[364102053,1748999443539,-151.0,0.00024131,7]
[364102055,1748999443549,-170.724753,0.00024131,7]
[364102057,1748999443559,-151.0,0.00024131,7]
[364102058,1748999443569,-151.0,0.00024131,7]
[364102060,1748999443579,-151.0,0.00024131,7]
[364102062,1748999443589,-151.0,0.00024131,7]
[364102064,1748999443599,-151.0,0.00024131,7]
[364102067,1748999443609,-151.0,0.00024131,7]
[364102068,1748999443619,-151.0,0.00024131,7]
[364102070,1748999443628,-296.440304,0.00024131,7]
[364102071,1748999443637,-741.579054,0.00024131,7]
[364102072,1748999443647,-741.579054,0.00024131,7]
[364102073,1748999443763,-741.579054,0.00024131,7]
[364102074,1748999443773,-741.579054,0.00024131,7]
[364102075,1748999443783,-741.579054,0.00024131,7]
[364102076,1748999443792,-741.579054,0.00024131,7]
[364102077,1748999443803,-741.579054,0.00024131,7]
[364102078,1748999443812,-160.0,0.00024131,3]
[364102079,1748999443822,-741.579054,0.00024131,7]
[364102080,1748999443831,-160.0,0.00024131,5]
[364102081,1748999443841,-741.579054,0.00024131,7]
[364102082,1748999443850,-741.579054,0.00024131,7]
[364102083,1748999443860,-741.579054,0.00024131,7]
[364102084,1748999443870,-741.579054,0.00024131,7]
[364102085,1748999443879,-741.579054,0.00024131,7]
[364102086,1748999443889,-741.579054,0.00024131,7]
[364102087,1748999443899,-741.579054,0.00024131,7]
[364102088,1748999443908,-741.579054,0.00024131,7]
[364102089,1748999443918,-741.579054,0.00024131,7]
[364102090,1748999443929,-741.579054,0.00024131,7]
[364102091,1748999443939,-741.579054,0.00024131,7]
[364102092,1748999443949,-741.579057,0.00024131,7]
[364102093,1748999443958,-151.0,0.00024131,7]
[364102094,1748999443968,-151.0,0.00024131,7]
[364102095,1748999443978,-152.97156,0.00024131,7]
[364102096,1748999443988,-151.0,0.00024131,7]
[364102097,1748999443998,-153.731127,0.00024131,7]
[364102098,1748999444007,-205.081933,0.00024131,2]
[364102099,1748999444016,-205.081933,0.00024131,2]
[364102100,1748999444027,-205.081933,0.00024131,2]
[364102101,1748999444037,-205.081933,0.00024131,2]
[364102102,1748999444046,-151.0,0.00024131,7]
[364102103,1748999444056,-205.081933,0.00024131,2]
[364102104,1748999444066,-151.0,0.00024131,7]
[364102105,1748999444076,-205.081933,0.00024131,2]
[364102106,1748999444085,-151.0,0.00024131,7]
[364102107,1748999444095,-205.081933,0.00024131,2]
[364102108,1748999444104,-205.081933,0.00024131,2]
[364102109,1748999444114,-205.081933,0.00024131,2]
[364102110,1748999444124,-205.081933,0.00024131,2]
[364102111,1748999444133,-205.081933,0.00024131,2]
[364102112,1748999444143,-205.081933,0.00024131,2]
[364102113,1748999444152,-205.081933,0.00024131,2]
[364102114,1748999444162,-205.081933,0.00024131,2]
[364102115,1748999444172,-205.081933,0.00024131,2]
[364102116,1748999444182,-205.081933,0.00024131,2]
[364102117,1748999444191,-205.081933,0.00024131,2]
[364102118,1748999444202,-205.081933,0.00024131,2]
[364102119,1748999444211,-205.081933,0.00024131,2]
[364102120,1748999444223,-205.081937,0.00024131,2]
[364102121,1748999444233,-151.0,0.00024131,7]
[364102122,1748999444243,-151.0,0.00024131,7]
[364102123,1748999444252,-151.0,0.00024131,7]